bitfinex/quotes_ETHUSD_20250731
["timestamp","ask_amount","ask_price","bid_price","bid_amount"]
[1753983458217,2.63597321,3793.7,3792.7,1.2578]
[1753983458417,2.63648815,3793.0,3792.8,4.148]
[1753983458618,2.63650504,3792.9,3792.8,5.11418]
[1753983458939,0.04,3793.9,3792.8,5.11418]
[1753983458940,2.63642061,3793.1,3792.8,5.11418]
[1753983459145,2.63642061,3793.1,3792.9,1.2578]
[1753983459328,2.63642061,3793.1,3793.0,4.148]
[1753983459644,2.80784322,3793.9,3793.0,5.5378]
[1753983459861,2.63615396,3793.5,3793.1,4.2578]
[1753983460067,2.67581011,3793.9,3793.8,0.132]
[1753983460271,0.28450645,3793.9,3793.2,1.2578]
[1753983460469,2.63587959,3793.8,3793.7,0.132]
[1753983460627,2.88038604,3793.8,3793.7,4.28]
[1753983460828,0.04,3793.9,3793.7,5.5378]
[1753983461028,2.63587959,3793.8,3793.7,4.70178]
[1753983461564,2.63587959,3793.8,3793.7,5.61658]
[1753983461766,2.63587959,3793.8,3793.7,0.132]
[1753983461954,2.88063186,3793.8,3793.7,4.279]
[1753983462526,2.88075011,3793.8,3793.7,4.279]
[1753983462728,2.63636603,3793.1,3793.0,0.475]
[1753983462931,2.63636603,3793.1,3793.0,5.4048]
[1753983463125,2.63636603,3793.1,3793.0,6.13228]
[1753983464349,2.63636603,3793.1,3793.0,5.5368]
[1753983464950,2.63636603,3793.1,3793.0,0.9148]
[1753983465205,2.63636603,3793.1,3793.0,4.279]
[1753983466084,2.63636603,3793.1,3793.0,0.132]
[1753983466280,2.63636603,3793.1,3793.0,4.278]
[1753983467805,2.63636603,3793.1,3793.0,5.1743]
[1753983468006,2.63636603,3793.1,3793.0,5.6487]
[1753983469349,2.63636603,3793.1,3793.0,4.278]
[1753983469975,2.63636603,3793.1,3793.0,0.132]
[1753983470160,3.16363075,3793.1,3793.0,0.132]
[1753983470365,2.63692218,3792.3,3792.2,6.334]
[1753983470856,2.63692218,3792.3,3792.2,10.612]
[1753983471771,2.63692218,3792.3,3792.2,6.466]
[1753983472103,2.63692218,3792.3,3792.2,10.612]
[1753983472810,2.63692218,3792.3,3792.2,10.611]
[1753983473007,2.63685265,3792.4,3792.3,3.0]
[1753983473215,2.63685265,3792.4,3792.3,3.4744]
[1753983473370,2.63678548,3792.5,3792.3,4.5027]
[1753983473665,2.63678548,3792.5,3792.4,5.5157]
[1753983473866,2.63621443,3793.4,3792.4,7.01387]
[1753983474116,2.63621443,3793.4,3792.5,1.3707]
[1753983474269,2.63670761,3792.7,3792.6,5.0413]
[1753983474476,2.63670761,3792.7,3792.6,5.5157]
[1753983474723,2.63670761,3792.7,3792.6,6.649087]
[1753983475637,2.63612191,3793.5,3792.6,5.752787]
[1753983475926,2.63664407,3792.7,3792.6,6.649087]
[1753983476225,0.132,3793.7,3792.6,6.649087]
[1753983476226,2.63622144,3793.4,3792.6,6.649087]
[1753983476573,2.63664407,3792.7,3792.6,6.517087]
[1753983477010,2.63625783,3793.3,3792.6,6.649087]
[1753983477179,2.63663848,3792.8,3792.6,6.649087]
[1753983477509,2.63663848,3792.8,3792.7,2.0356087]
[1753983477706,2.63663848,3792.8,3792.7,2.1676087]
[1753983478271,2.63663848,3792.8,3792.7,1.5027]
[1753983478484,2.63663848,3792.8,3792.7,0.132]
[1753983478684,2.63663848,3792.8,3792.7,4.277]
[1753983479999,2.63663848,3792.8,3792.7,0.132]
[1753983480197,2.63663848,3792.8,3792.7,4.277]
[1753983480402,2.63657456,3792.8,3792.7,4.277]
[1753983480710,2.63657456,3792.8,3792.7,6.0754]
[1753983480914,2.63837998,3793.1,3792.7,6.0754]
[1753983481226,2.63652643,3792.9,3792.8,1.3707]
[1753983481387,2.63652643,3792.9,3792.8,5.5157]
[1753983481589,2.63652643,3792.9,3792.8,5.6477]
[1753983482903,2.63652643,3792.9,3792.8,6.25524]
[1753983483231,0.002,3793.1,3792.8,6.25524]
[1753983483399,2.63650504,3792.9,3792.8,4.88454]
[1753983483606,2.63650504,3792.9,3792.8,6.12324]
[1753983483944,2.63650504,3792.9,3792.8,4.277]
[1753983484294,2.63650504,3792.9,3792.8,0.132]
[1753983484535,2.63650504,3792.9,3792.8,4.276]
[1753983485093,2.63650504,3792.9,3792.8,0.132]
[1753983485431,2.63650504,3792.9,3792.8,4.144]
[1753983486021,2.63657456,3792.8,3792.7,0.132]
[1753983486219,2.6367136,3792.6,3792.5,0.132]
[1753983486518,2.6367136,3792.6,3792.5,4.276]
[1753983487545,2.6367136,3792.6,3792.5,0.132]
[1753983487731,2.6367136,3792.6,3792.5,4.276]
[1753983488048,2.6367136,3792.6,3791.4,0.001]
[1753983488049,2.63692218,3792.3,3792.0,0.132]
[1753983488215,2.6699541,3792.2,3792.1,4.144]
[1753983488414,2.63699171,3792.2,3792.1,4.144]
[1753983488654,2.63720034,3791.9,3791.8,0.001]
[1753983488956,2.63720034,3791.9,3791.8,4.145]
[1753983489312,2.63747857,3791.5,3791.4,0.001]
[1753983489564,2.63747857,3791.5,3791.4,4.145]
[1753983490437,2.63768727,3791.2,3790.6,1.3707]
[1753983490757,2.63768727,3791.2,3790.0,0.8963]
[1753983490758,2.63838319,3790.2,3790.0,0.8963]
[1753983491059,2.63838319,3790.2,3790.1,4.183]
[1753983491428,2.63789601,3790.9,3790.1,6.01954]
[1753983491756,2.63831358,3790.3,3790.2,1.3707]
[1753983494856,2.63838319,3790.2,3790.1,4.183]
[1753983496617,2.63838319,3790.2,3790.1,5.4692]
[1753983496860,2.63838319,3790.2,3790.1,6.01622]
[1753983497406,2.63792333,3790.9,3790.1,5.4692]
[1753983497705,2.39473771,3792.6,3790.4,2.63824398]
[1753983498016,0.89141055,3792.9,3790.3,0.55]
[1753983498017,2.63796892,3790.8,3790.6,0.55]
[1753983498223,2.63810478,3790.6,3790.5,4.144]
[1753983498514,2.63810478,3790.6,3790.5,4.9648]
[1753983498723,0.5698,3791.5,3790.5,4.144]
[1753983498724,2.6376177,3791.3,3790.5,4.144]
[1753983498867,2.63810478,3790.6,3790.5,4.144]
[1753983499072,2.63810478,3790.6,3790.5,5.92668]
[1753983499311,2.63810478,3790.6,3790.5,5.5622]
[1753983499668,2.63810478,3790.6,3790.5,4.276]
[1753983499966,2.63810478,3790.6,3790.5,0.132]
[1753983500165,2.63810478,3790.6,3790.5,4.276]
[1753983500991,3.20790478,3790.6,3790.1,0.041]
[1753983501203,2.63838319,3790.2,3790.1,0.041]
[1753983501514,2.63838319,3790.2,3790.1,4.185]
[1753983501883,2.63838319,3790.2,3790.1,5.0058]
[1753983502526,2.63830712,3790.4,3790.1,5.4712]
[1753983502697,2.63828989,3790.4,3790.2,1.84652]
[1753983502894,0.132,3791.2,3790.3,0.132]
[1753983503211,2.6379998,3790.8,3790.4,5.4302]
[1753983503412,2.6379998,3790.8,3790.5,1.2862]
[1753983503583,2.6379998,3790.8,3790.6,0.55622]
[1753983503784,2.6379998,3790.8,3790.7,4.276]
[1753983504618,2.6379998,3790.8,3790.7,5.0968]
[1753983504881,2.6379656,3790.8,3790.7,5.5622]
[1753983505285,2.63726326,3791.9,3790.7,5.5622]
[1753983505286,0.132,3791.8,3790.7,5.5622]
[1753983505483,2.63773385,3791.2,3790.8,1.84242]
[1753983505718,2.63773385,3791.2,3790.9,1.2862]
[1753983505898,2.63773385,3791.2,3791.1,0.132]
[1753983506084,2.63773385,3791.2,3791.1,0.5974]
[1753983506289,2.63773385,3791.2,3791.1,1.4182]
[1753983506491,0.132,3792.0,3791.1,2.029942]
[1753983506698,0.132,3792.2,3791.2,1.2862]
[1753983506907,2.63753483,3791.5,3791.3,5.4292]
[1753983507106,2.63753483,3791.5,3791.4,1.2862]
[1753983507286,2.63753483,3791.5,3791.4,1.4182]
[1753983507745,2.63753483,3791.5,3791.4,0.9528]
[1753983508223,2.63753483,3791.5,3791.4,1.4182]
[1753983510329,2.63753483,3791.5,3791.4,0.132]
[1753983510618,2.63753483,3791.5,3791.4,4.275]
[1753983510984,2.63747857,3791.5,3791.4,5.5612]
[1753983511419,2.63734325,3791.7,3791.4,5.5612]
[1753983511639,2.63747857,3791.5,3791.4,4.275]
[1753983511805,2.63747857,3791.5,3791.4,4.143]
[1753983512004,2.63747857,3791.5,3791.4,4.275]
[1753983512210,2.63747857,3791.5,3791.4,5.5612]
[1753983513422,2.6374027,3791.7,3791.4,5.5612]
[1753983513710,2.63743108,3791.6,3791.4,4.275]
[1753983513904,2.6367136,3792.6,3791.6,0.55]
[1753983514202,2.63726989,3791.8,3791.7,5.4282]
[1753983514346,2.63726989,3791.8,3791.7,4.9628]
[1753983514552,2.63726989,3791.8,3791.7,5.0948]
[1753983514900,3.39527481,3792.7,3791.7,5.5602]
[1753983515053,2.63678312,3792.5,3792.2,0.132]
[1753983515250,2.63685265,3792.4,3792.3,4.142]
[1753983515861,2.63692218,3792.3,3792.2,0.132]
[1753983516217,3.50592218,3792.3,3792.2,4.142]
[1753983516506,2.63692218,3792.3,3792.2,4.142]
[1753983516794,3.90355641,3792.3,3792.2,4.142]
[1753983517999,2.63720034,3791.9,3791.8,0.132]
[1753983518184,2.63775685,3791.1,3791.0,0.8208]
[1753983518386,3.132,3792.2,3790.2,0.56032]
[1753983518589,2.63758226,3791.4,3791.0,0.132]
[1753983518887,2.63726989,3791.8,3791.5,0.132]
[1753983518888,2.637409,3791.6,3791.5,0.132]
[1753983519095,2.63768727,3791.2,3791.1,1.2862]
[1753983519266,2.63768727,3791.2,3791.1,5.4272]
[1753983519462,2.63768727,3791.2,3791.1,5.5592]
[1753983520018,2.63765948,3791.3,3791.1,5.5592]
[1753983520214,2.6376177,3791.3,3791.2,1.2862]
[1753983520712,3.13671328,3792.6,3791.3,0.55]
[1753983520936,2.63733499,3791.8,3791.4,1.2862]
[1753983521131,2.63723113,3791.9,3791.5,6.17402]
[1753983521431,2.63723113,3791.9,3791.6,1.2862]
[1753983521572,2.63677919,3792.6,3791.5,4.88782]
[1753983521778,2.63926989,3791.8,3791.7,1.2862]
[1753983522214,2.63926989,3791.8,3791.7,1.4182]
[1753983522598,2.63926989,3791.8,3791.7,5.5592]
[1753983525211,2.63926989,3791.8,3791.7,4.272]
[1753983526615,2.63926989,3791.8,3791.7,5.6214]
[1753983528708,2.63926989,3791.8,3791.7,4.272]
[1753983529304,2.63926989,3791.8,3791.7,5.1521]
[1753983529928,2.63926989,3791.8,3791.7,4.272]
[1753983530125,2.63775685,3791.1,3791.0,0.8801]
[1753983530894,2.63775685,3791.1,3791.0,1.4814]
[1753983531092,2.63775685,3791.1,3791.0,4.271]
[1753983532852,2.63775685,3791.1,3791.0,0.132]
[1753983533137,2.6379656,3790.8,3790.7,6.334]
[1753983533292,2.6379656,3790.8,3790.7,10.473]
[1753983533493,2.6379656,3790.8,3790.7,10.605]
[1753983533892,2.6379656,3790.8,3790.7,6.466]
[1753983534092,2.6379656,3790.8,3790.7,10.605]
[1753983535149,2.6379656,3790.8,3790.7,6.466]
[1753983535316,2.6379656,3790.8,3790.7,10.605]
[1753983535631,2.6379656,3790.8,3790.7,1e-08]
[1753983535841,4.43140079,3790.8,3790.7,1e-08]
[1753983536350,4.39842622,3790.8,3790.7,1e-08]
[1753983536847,2.63838319,3790.2,3790.1,0.173]
[1753983537131,2.63838319,3790.2,3790.1,0.041]
[1753983537333,2.63859204,3789.9,3789.8,0.001]
[1753983537551,2.63859204,3789.9,3789.8,4.14]
[1753983537748,2.63859204,3789.9,3789.8,0.133]
[1753983538042,2.63859204,3789.9,3789.8,4.14]
[1753983540335,2.63859204,3789.9,3789.8,5.4894]
[1753983540653,2.63859204,3789.9,3789.8,6.05154]
[1753983541453,0.132,3790.6,3789.8,5.4894]
[1753983541639,2.63836539,3790.3,3789.9,1.3494]
[1753983541838,2.63775685,3791.1,3790.0,5.4884]
[1753983541839,8.88643934,3790.8,3790.0,5.4884]
[1753983542148,2.63845281,3790.1,3790.0,5.4884]
[1753983543074,3.0,3791.1,3790.0,5.4884]
[1753983543272,2.6384446,3790.2,3790.0,4.68794]
[1753983543472,2.6384446,3790.2,3790.1,1.3494]
[1753983543881,2.63836269,3790.3,3790.1,1.3494]
[1753983544066,2.63836269,3790.3,3790.0,4.68794]
[1753983544264,2.63836269,3790.3,3790.2,1.3494]
[1753983545378,2.63845281,3790.1,3790.0,4.139]
[1753983545675,2.63778314,3791.1,3790.0,5.99041]
[1753983545897,2.63782643,3791.0,3790.1,1.3494]
[1753983546039,2.63812468,3790.6,3790.2,1.3494]
[1753983546257,2.63765959,3791.3,3790.3,6.086441]
[1753983546494,2.63786946,3791.0,3790.4,1.8994]
[1753983546645,2.637409,3791.6,3790.5,1.3494]
[1753983547001,2.63791191,3790.9,3790.6,5.4874]
[1753983547310,2.63735862,3791.7,3790.7,1.3494]
[1753983547523,0.002,3791.8,3791.3,2.6375602]
[1753983547792,0.002,3791.8,3790.7,3.55]
[1753983547793,0.002,3791.8,3791.5,0.55]
[1753983548004,0.002,3791.8,3791.6,4.138]
[1753983548304,0.002,3791.8,3791.6,5.4874]
[1753983548597,0.002,3791.8,3791.7,1.3494]
[1753983551603,0.002,3791.8,3791.7,1.4814]
[1753983552684,0.002,3791.8,3791.7,4.11873945]
[1753983553942,0.002,3791.8,3791.7,7.66873945]
[1753983555472,0.002,3791.8,3791.7,4.4814]
[1753983555787,0.002,3791.8,3791.7,8.85479194]
[1753983557073,0.002,3791.8,3791.7,8.72279194]
[1753983557279,0.002,3791.8,3791.7,8.85479194]
[1753983559073,0.002,3791.8,3791.7,1.0121]
[1753983559243,0.002,3791.8,3791.7,0.132]
[1753983559456,0.002,3791.8,3791.7,0.682]
[1753983559764,0.002,3791.8,3791.7,4.64353945]
[1753983560961,0.002,3791.8,3791.7,2.0062]
[1753983561272,0.002,3791.8,3791.7,2.88437368]
[1753983561473,0.002,3791.8,3791.7,8.77753945]
[1753983562889,0.002,3791.8,3791.7,6.1402]
[1753983563262,0.002,3791.8,3791.7,8.77753945]
[1753983563992,0.002,3791.8,3791.7,6.1402]
[1753983564702,0.002,3791.8,3791.7,4.816]
[1753983564864,0.002,3791.8,3791.7,4.266]
[1753983565948,2.63926989,3791.8,3791.7,4.266]
[1753983566170,3.17091568,3791.8,3791.7,0.132]
[1753983566593,3.79681568,3791.8,3791.7,0.132]
[1753983567559,3.17091568,3791.8,3791.7,0.132]
[1753983568698,3.79681568,3791.8,3791.7,0.132]
[1753983569393,3.17091568,3791.8,3791.7,0.132]
[1753983569600,2.63926989,3791.8,3791.7,0.132]
[1753983570665,0.002,3791.8,3791.7,0.132]
[1753983570881,0.002,3791.8,3791.7,1.02]
[1753983571303,0.002,3791.8,3791.7,1.4562]
[1753983571593,2.63926989,3791.8,3791.7,1.4562]
[1753983571909,0.002,3791.8,3791.7,1.4562]
[1753983572420,2.63926989,3791.8,3791.7,0.132]
[1753983572765,0.002,3791.8,3791.7,0.132]
[1753983573496,2.63926989,3791.8,3791.7,0.132]
[1753983573908,3.17091578,3791.8,3791.7,0.132]
[1753983574460,3.79681578,3791.8,3791.7,0.132]
[1753983574664,2.63738785,3791.7,3791.6,0.132]
[1753983583003,2.63738785,3791.7,3791.6,1.02]
[1753983583698,2.63738785,3791.7,3791.6,0.132]
[1753983586230,3.64474251,3791.7,3791.6,0.132]
[1753983586509,2.6376378,3791.3,3790.9,0.8588]
[1753983586698,2.63782643,3791.0,3790.9,0.8588]
[1753983587011,2.63782643,3791.0,3790.9,1.3304]
[1753983587208,2.63782643,3791.0,3790.9,0.132]
[1753983587370,2.63852242,3790.0,3789.9,0.001]
[1753983587814,2.63852242,3790.0,3789.9,0.133]
[1753983588269,0.52755231,3791.0,3789.9,1.4634]
[1753983588469,0.132,3791.0,3790.0,1.3304]
[1753983588669,4.13,3790.9,3790.1,1.3304]
[1753983588913,2.6383801,3790.3,3790.2,0.8588]
[1753983589116,2.6383801,3790.3,3790.2,1.3304]
[1753983589314,2.6383801,3790.3,3790.2,1.4624]
[1753983589511,0.132,3791.0,3790.2,1.60874]
[1753983589717,2.63803478,3790.8,3790.3,1.3304]
[1753983589920,0.002,3791.8,3790.4,1.3304]
[1753983590209,2.63775974,3791.1,3790.7,0.132]
[1753983590408,2.63775974,3791.1,3790.5,0.8588]
[1753983590608,2.63769954,3791.2,3790.8,0.8588]
[1753983590909,2.63789601,3790.9,3790.6,0.64970012]
[1753983591086,2.63784073,3791.0,3790.4,0.55]
[1753983591280,2.63784073,3791.0,3790.8,0.132]
[1753983591503,4.13,3791.7,3790.9,0.8588]
[1753983591835,2.63789601,3790.9,3790.8,0.6036]
[1753983592002,2.63784391,3791.0,3790.8,0.4716]
[1753983592206,2.63789601,3790.9,3790.8,0.6036]
[1753983592533,2.63803519,3790.7,3790.6,4.13]
[1753983592746,0.6259,3791.5,3790.6,4.13]
[1753983593031,1.11499,3791.5,3790.6,5.1208]
[1753983593244,0.48909,3791.5,3790.6,4.13]
[1753983593426,2.63778136,3791.1,3791.0,0.132]
[1753983593626,2.63778136,3791.1,3791.0,0.9908]
[1753983598149,2.63778136,3791.1,3791.0,1.4624]
[1753983600765,2.63775685,3791.1,3791.0,1.4624]
[1753983601429,0.002,3791.8,3791.0,1.60864]
[1753983601783,0.002,3791.8,3791.1,1.3304]
[1753983601784,2.63766873,3791.3,3791.1,1.3304]
[1753983601932,2.63754813,3791.4,3790.5,1.3304]
[1753983602273,2.63803519,3790.7,3790.6,0.8588]
[1753983602566,2.63743263,3791.6,3790.6,1.3304]
[1753983602928,0.002,3791.8,3790.8,0.55]
[1753983603078,2.63928512,3791.8,3791.0,0.55]
[1753983603278,2.63733945,3791.7,3791.1,1.3304]
[1753983603598,2.63748822,3791.5,3791.1,1.3304]
[1753983603927,2.63754834,3791.4,3791.2,1.3304]
[1753983604078,2.63749739,3791.5,3791.0,0.55]
[1753983604282,0.002,3791.8,3791.1,2.06189175]
[1753983604475,2.6373819,3791.7,3791.1,2.06189175]
[1753983604675,2.6373819,3791.7,3791.2,1.3304]
[1753983605117,0.002,3791.8,3791.3,1.3304]
[1753983605313,2.63927277,3791.8,3791.3,1.3304]
[1753983605491,2.63741145,3791.6,3791.1,0.73149175]
[1753983605693,2.63741145,3791.6,3791.2,2.1350314]
[1753983605983,2.63750187,3791.5,3791.3,1.3304]
[1753983606327,2.63738548,3791.7,3791.4,1.3304]
[1753983606531,2.63740977,3791.6,3791.5,5.4574]
[1753983606744,2.63740977,3791.6,3791.5,4.127]
[1753983607633,2.63740977,3791.6,3791.5,4.9858]
[1753983607808,2.63940977,3791.6,3791.5,4.9858]
[1753983609197,0.002,3791.6,3791.0,4.126]
[1753983609402,2.63775685,3791.1,3791.0,4.126]
[1753983610052,3.23185685,3791.1,3791.0,4.126]
[1753983610246,0.002,3791.6,3791.0,4.126]
[1753983610537,2.63747857,3791.5,3791.1,1.743]
[1753983610737,2.63756828,3791.4,3791.1,0.4126]
[1753983611043,2.63775685,3791.1,3791.0,4.126]
[1753983611200,2.63768727,3791.2,3790.3,6.8943114]
[1753983611201,2.6379656,3790.8,3790.3,0.8588]
[1753983611400,2.63816708,3790.6,3790.4,1.3304]
[1753983611705,2.6380408,3790.7,3790.5,5.4554]
[1753983611919,2.6380408,3790.7,3790.6,1.3304]
[1753983613536,0.7261,3791.5,3790.6,1.03034]
[1753983613537,0.132,3791.5,3790.6,1.03034]
[1753983613742,0.002,3791.6,3790.7,0.4716]
[1753983613945,0.002,3791.6,3790.8,0.8588]
[1753983614235,0.002,3791.6,3791.5,0.132]
[1753983614396,2.639409,3791.6,3791.5,4.257]
[1753983614595,2.639409,3791.6,3791.5,5.5874]
[1753983614914,2.639409,3791.6,3791.5,4.257]
[1753983615113,2.639409,3791.6,3791.5,0.132]
[1753983615447,2.63747857,3791.5,3791.4,4.125]
[1753983615744,3.21107857,3791.5,3791.4,4.125]
[1753983616043,2.63747857,3791.5,3791.4,4.125]
[1753983616397,2.6376177,3791.3,3791.2,0.132]
[1753983616607,2.63824102,3790.5,3790.3,0.8851]
[1753983616910,0.5736,3791.0,3790.4,4.125]
[1753983617115,2.88012772,3791.2,3790.4,4.257]
[1753983617314,2.63817438,3790.5,3790.4,4.125]
[1753983617541,2.63817438,3790.5,3790.4,5.1421]
[1753983618061,2.63812747,3790.6,3790.4,5.1421]
[1753983618200,2.63812747,3790.6,3790.4,1.0171]
[1753983618396,2.63812747,3790.6,3790.5,4.124]
[1753983619040,2.63812747,3790.6,3790.4,0.132]
[1753983619244,2.63812747,3790.6,3790.5,4.124]
[1753983620255,2.63817438,3790.5,3790.4,0.132]
[1753983620418,2.63817438,3790.5,3790.4,4.256]
[1753983620617,2.63768727,3791.2,3790.4,5.5786]
[1753983620811,2.63815714,3790.6,3790.4,4.256]
[1753983621005,2.63815714,3790.6,3790.5,1.3226]
[1753983621206,2.63815714,3790.6,3790.5,1.4546]
[1753983621402,2.6380061,3790.8,3790.5,1.4546]
[1753983621648,2.63810478,3790.6,3790.5,0.5695]
[1753983621979,2.63810478,3790.6,3790.5,0.4375]
[1753983622134,2.63810478,3790.6,3790.5,0.5695]
[1753983622336,2.63810478,3790.6,3790.5,0.132]
[1753983624320,2.63810255,3790.7,3790.5,1.4546]
[1753983624521,2.63810255,3790.7,3790.6,1.3226]
[1753983624752,2.63810255,3790.7,3790.6,1.4546]
[1753983625524,0.132,3791.4,3790.6,1.4546]
[1753983625881,0.002,3791.6,3790.8,0.55]
[1753983626168,0.002,3791.6,3790.6,3.0]
[1753983626169,0.002,3791.6,3791.0,0.55]
[1753983626377,2.639409,3791.6,3791.5,0.132]
[1753983626527,2.639409,3791.6,3791.5,4.255]
[1753983627444,2.639409,3791.6,3791.5,0.132]
[1753983627644,2.639409,3791.6,3791.5,4.255]
[1753983628360,2.639409,3791.6,3791.5,5.5776]
[1753983629991,2.639409,3791.6,3791.5,4.255]
[1753983632505,0.77627365,3791.6,3790.5,4.25599998]
[1753983632681,2.63782643,3791.0,3790.9,0.132]
[1753983632861,2.63782643,3791.0,3790.9,4.254]
[1753983633059,2.63782643,3791.0,3790.9,0.132]
[1753983633408,1.97890112,3791.0,3790.9,4.122]
[1753983633570,2.63782643,3791.0,3790.9,4.254]
[1753983634072,3.20052643,3791.0,3790.9,0.132]
[1753983634403,2.63852242,3790.0,3789.9,0.001]
[1753983634604,2.63852242,3790.0,3789.9,4.123]
[1753983634762,2.63852242,3790.0,3789.9,4.255]
[1753983634958,2.63852242,3790.0,3789.9,4.123]
[1753983636064,2.63852242,3790.0,3789.9,5.0081]
[1753983636587,2.63852242,3790.0,3789.9,4.123]
[1753983636757,2.63852242,3790.0,3789.9,5.0081]
[1753983637372,2.63852242,3790.0,3789.9,5.4456]
[1753983638096,2.63852242,3790.0,3789.9,4.255]
[1753983638313,2.63852242,3790.0,3789.9,4.123]
[1753983638490,2.63852242,3790.0,3789.9,0.001]
[1753983638673,2.63852242,3790.0,3789.9,4.122]
[1753983638674,3.74211858,3790.0,3789.9,4.122]
[1753983638862,3.87411858,3790.0,3789.9,4.122]
[1753983639276,3.31141858,3790.0,3789.9,4.122]
[1753983640660,3.31141858,3790.0,3789.9,0.001]
[1753983640661,3.33322242,3790.0,3789.9,0.001]
[1753983640857,3.57562242,3790.0,3789.9,1e-08]
[1753983642266,2.63880092,3789.6,3789.5,1e-08]
[1753983642709,2.77080092,3789.6,3789.5,1e-08]
[1753983643006,3.33350092,3789.6,3789.5,1e-08]
[1753983643370,2.77080092,3789.6,3789.5,1e-08]
[1753983644321,2.77080092,3789.6,3789.1,1e-08]
[1753983644322,2.63899416,3789.4,3789.1,1e-08]
[1753983644475,11.65751882,3789.2,3789.1,1e-08]
[1753983644988,12.22021882,3789.2,3789.1,1e-08]
[1753983645385,2.63907948,3789.2,3789.1,1e-08]
[1753983645716,3.33377948,3789.2,3789.1,1e-08]
[1753983646279,2.77107948,3789.2,3789.1,1e-08]
[1753983646596,4.63760733,3789.2,3789.1,1e-08]
[1753983647123,2.77107948,3789.2,3789.1,1e-08]
[1753983647415,2.63907948,3789.2,3789.1,1.26710001]
[1753983647623,2.638987,3789.4,3789.1,1.26710001]
[1753983647968,0.132,3789.9,3789.2,1.2671]
[1753983648116,2.6389402,3789.4,3789.3,4.121]
[1753983648318,2.63887528,3789.5,3789.3,5.5201]
[1753983648520,0.132,3790.2,3789.4,1.2671]
[1753983648819,0.132,3790.5,3789.5,1.2671]
[1753983648987,2.63836818,3790.3,3790.2,0.132]
[1753983649189,2.63836818,3790.3,3790.2,5.5201]
[1753983649502,2.63852242,3790.0,3789.9,0.837]
[1753983649675,2.63859204,3789.9,3789.8,0.132]
[1753983649878,12.33013138,3789.9,3789.8,4.253]
[1753983650378,11.65703138,3789.9,3789.8,4.121]
[1753983650591,13.11297198,3789.9,3789.8,4.121]
[1753983651318,4.22653264,3789.9,3789.8,4.121]
[1753983651492,2.77059204,3789.9,3789.8,4.121]
[1753983652092,14.69001378,3789.9,3789.8,4.121]
[1753983652292,14.65703138,3789.9,3789.8,4.121]
[1753983652597,2.63907948,3789.2,3789.1,1e-08]
[1753983652810,2.63907948,3789.2,3789.1,4.12100001]
[1753983654118,7.15017548,3789.2,3789.1,1e-08]
[1753983654285,7.15017548,3789.2,3788.8,1e-08]
[1753983654286,5.63928844,3788.9,3788.8,1e-08]
[1753983654646,5.63928844,3788.9,3788.1,0.04]
[1753983654647,2.63977614,3788.2,3788.1,0.04]
[1753983654925,2.80477334,3788.2,3788.1,0.04]
[1753983655230,4.20486644,3788.2,3788.1,0.04]
[1753983656248,2.77177614,3788.2,3788.1,1.3071]
[1753983656544,0.132,3788.6,3788.1,1.3071]
[1753983656707,0.132,3788.8,3788.2,1.2671]
[1753983657032,2.6393581,3788.8,3788.5,0.132]
[1753983657214,2.6393581,3788.8,3788.6,4.12]
[1753983657416,0.132,3789.2,3788.7,1.3991]
[1753983657604,2.6393581,3788.8,3788.7,1.3991]
[1753983657813,2.6393581,3788.8,3788.7,1.2671]
[1753983658009,2.63956711,3788.5,3788.4,0.837]
[1753983658327,2.63949743,3788.6,3788.4,4.12]
[1753983658487,2.63956711,3788.5,3788.4,4.957]
[1753983659117,2.63956711,3788.5,3788.4,4.12]
[1753983659534,2.77156711,3788.5,3788.4,4.12]
[1753983659851,2.77156711,3788.5,3788.4,4.957]
[1753983660337,2.77156711,3788.5,3788.4,4.12]
[1753983661048,2.63956711,3788.5,3788.4,5.3871]
[1753983661338,0.132,3789.2,3788.4,6.06181]
[1753983661540,0.26385224,3790.0,3788.4,6.06181]
[1753983661541,0.132,3789.4,3788.8,0.132]
[1753983661721,2.6390418,3789.3,3788.9,5.3871]
[1753983661907,0.26385224,3790.0,3789.0,1.2671]
[1753983662115,3.0,3789.8,3789.0,0.4301]
[1753983662309,2.63908329,3789.2,3789.1,0.969]
[1753983662906,2.63921879,3789.0,3788.9,4.12]
[1753983663106,2.6393581,3788.8,3788.7,0.969]
[1753983663310,2.6393581,3788.8,3788.7,5.088]
[1753983663552,2.6393581,3788.8,3788.7,5.5181]
[1753983663900,2.77108259,3789.2,3788.7,5.5181]
[1753983664105,2.63914913,3789.1,3789.0,0.837]
[1753983664845,2.63914913,3789.1,3789.0,1.2671]
[1753983665050,2.63914913,3789.1,3789.0,4.119]
[1753983665198,3.18017054,3789.1,3789.0,4.119]
[1753983667439,2.63914913,3789.1,3789.0,4.5491]
[1753983667910,2.63914913,3789.1,3789.0,4.956]
[1753983668719,2.63914913,3789.1,3789.0,4.119]
[1753983669310,5.63914913,3789.1,3789.0,4.119]
[1753983669646,2.63970646,3788.3,3788.2,0.837]
[1753983669845,2.63970646,3788.3,3788.2,4.956]
[1753983672145,3.0,3789.1,3788.2,4.956]
[1753983672146,2.63966215,3788.4,3788.2,4.956]
[1753983672349,2.6395941,3788.5,3788.3,0.837]
[1753983672645,2.6395941,3788.5,3788.4,0.5621]
[1753983672967,2.6395941,3788.5,3788.4,1.3991]
[1753983673308,2.63951664,3788.6,3788.4,1.2671]
[1753983673525,2.63945191,3788.7,3788.5,5.3851]
[1753983673867,2.63947025,3788.7,3788.5,4.118]
[1753983674154,2.63929858,3788.9,3788.5,4.118]